[Event "*** Titled Tuesday 3|2 Blitz"]
[Site "Chess.com"]
[Date "2016.07.05"]
[Round "2"]
[White "hermionegrangermagic"]
[Black "Er_is_geen_hoop_meer"]
[Result "0-1"]
[WhiteElo "2266"]
[BlackElo "2336"]
[TimeControl "180+2"]
[EndTime "11:18:14 PDT"]
[Termination "Er_is_geen_hoop_meer won by checkmate"]

1. Nf3 {[%clk 0:02:51.6]} 1... e6 {[%clk 0:03:00.8]} 2. d4 {[%clk 0:02:51.7]}
2... f5 {[%clk 0:03:01.9]} 3. c4 {[%clk 0:02:52.4]} 3... Nf6 {[%clk 0:03:02.8]}
4. g3 {[%clk 0:02:52.9]} 4... Be7 {[%clk 0:03:03.6]} 5. Bg2 {[%clk 0:02:53.5]}
5... O-O {[%clk 0:03:05.5]} 6. O-O {[%clk 0:02:54.4]} 6... d6 {[%clk 0:03:07.4]}
7. Nc3 {[%clk 0:02:55.2]} 7... Ne4 {[%clk 0:03:06.9]} 8. Qc2 {[%clk 0:02:53.1]}
8... Nxc3 {[%clk 0:03:06.8]} 9. bxc3 {[%clk 0:02:53.5]} 9... Bf6 {[%clk
0:03:08.7]} 10. e4 {[%clk 0:02:53.7]} 10... e5 {[%clk 0:03:08.3]} 11. exf5
{[%clk 0:02:42]} 11... Nc6 {[%clk 0:03:04.2]} 12. Rd1 {[%clk 0:02:36.5]} 12...
Qe8 {[%clk 0:03:02.6]} 13. g4 {[%clk 0:02:31.9]} 13... g6 {[%clk 0:02:56.1]} 14.
fxg6 {[%clk 0:02:10.3]} 14... Bxg4 {[%clk 0:02:58]} 15. gxh7+ {[%clk 0:02:08.1]}
15... Kh8 {[%clk 0:02:58.7]} 16. dxe5 {[%clk 0:01:57.4]} 16... Bxf3 {[%clk
0:02:54.9]} 17. Bxf3 {[%clk 0:01:34.7]} 17... Bxe5 {[%clk 0:02:56.2]} 18. Qe4
{[%clk 0:01:26.3]} 18... Qf7 {[%clk 0:02:53.6]} 19. Rd3 {[%clk 0:01:24.7]} 19...
Bxh2+ {[%clk 0:02:54.6]} 20. Kxh2 {[%clk 0:01:21]} 20... Ne5 {[%clk 0:02:56.5]}
21. Bg2 {[%clk 0:01:00.9]} 21... Nxd3 {[%clk 0:02:39.8]} 22. Qxd3 {[%clk
0:01:00.3]} 22... Qxf2 {[%clk 0:02:41]} 23. Be3 {[%clk 0:00:46.9]} 23... Qh4+
{[%clk 0:02:41.3]} 24. Kg1 {[%clk 0:00:47.3]} 24... c5 {[%clk 0:02:40.9]} 25.
Qxd6 {[%clk 0:00:42.7]} 25... Rae8 {[%clk 0:02:41.7]} 26. Qxc5 {[%clk 0:00:39]}
26... Kxh7 {[%clk 0:02:36.4]} 27. Qd4 {[%clk 0:00:23.2]} 27... Qg3 {[%clk
0:02:32.2]} 28. Qd7+ {[%clk 0:00:18.4]} 28... Kg6 {[%clk 0:02:28.2]} 29. Qd3+
{[%clk 0:00:17.7]} 29... Rf5 {[%clk 0:02:23.3]} 30. Qd7 {[%clk 0:00:06.2]} 30...
Qxe3+ {[%clk 0:02:13.9]} 31. Kh2 {[%clk 0:00:07.1]} 31... Rh8+ {[%clk
0:02:14.7]} 32. Bh3 {[%clk 0:00:08]} 32... Rxh3+ {[%clk 0:02:12.9]} 33. Kg2
{[%clk 0:00:08]} 33... Qf3+ {[%clk 0:02:14.2]} 34. Kg1 {[%clk 0:00:08]} 34...
Rh1# {[%clk 0:02:15.8]} 0-1

[Event "*** Titled Tuesday 3|2 Blitz"]
[Site "Chess.com"]
[Date "2016.07.05"]
[Round "2"]
[White "Schemato"]
[Black "joppie2"]
[Result "0-1"]
[WhiteElo "2188"]
[BlackElo "2519"]
[TimeControl "180+2"]
[EndTime "11:18:24 PDT"]
[Termination "joppie2 won by resignation"]

1. c4 {[%clk 0:03:01.9]} 1... e5 {[%clk 0:03:01.1]} 2. g3 {[%clk 0:03:01.5]}
2... Nf6 {[%clk 0:03:02.3]} 3. Bg2 {[%clk 0:03:00.6]} 3... d5 {[%clk 0:03:03.9]}
4. cxd5 {[%clk 0:03:01.2]} 4... Nxd5 {[%clk 0:03:05.8]} 5. Nf3 {[%clk
0:03:01.5]} 5... Nc6 {[%clk 0:03:06.7]} 6. O-O {[%clk 0:03:02.5]} 6... Nde7
{[%clk 0:03:07.1]} 7. b4 {[%clk 0:02:56]} 7... a6 {[%clk 0:02:52.6]} 8. Bb2
{[%clk 0:02:53.4]} 8... Ng6 {[%clk 0:02:52.9]} 9. a3 {[%clk 0:02:45.8]} 9... Bd6
{[%clk 0:02:53]} 10. Nc3 {[%clk 0:02:44.9]} 10... O-O {[%clk 0:02:53.8]} 11. d4
{[%clk 0:02:32.6]} 11... exd4 {[%clk 0:02:50.5]} 12. Nxd4 {[%clk 0:02:32.9]}
12... Nce5 {[%clk 0:02:39.9]} 13. Qb3 {[%clk 0:02:28]} 13... Qe7 {[%clk
0:02:37.5]} 14. Ne4 {[%clk 0:02:26.1]} 14... c6 {[%clk 0:02:22.7]} 15. Nxd6
{[%clk 0:02:25.1]} 15... Qxd6 {[%clk 0:02:24.6]} 16. Rfd1 {[%clk 0:02:21.1]}
16... Qe7 {[%clk 0:02:25.7]} 17. a4 {[%clk 0:02:20.2]} 17... Bg4 {[%clk
0:02:22]} 18. Rd2 {[%clk 0:02:16.4]} 18... Rad8 {[%clk 0:02:15.9]} 19. Rc2
{[%clk 0:02:13.3]} 19... h6 {[%clk 0:02:02]} 20. e3 {[%clk 0:02:14.1]} 20... Qg5
{[%clk 0:01:52.4]} 21. h3 {[%clk 0:02:12.9]} 21... Bc8 {[%clk 0:01:49.5]} 22. b5
{[%clk 0:02:12]} 22... axb5 {[%clk 0:01:50.5]} 23. axb5 {[%clk 0:02:12.8]} 23...
c5 {[%clk 0:01:50.6]} 24. f4 {[%clk 0:01:29.6]} 24... Qxg3 {[%clk 0:01:36]} 25.
Ne2 {[%clk 0:01:21.3]} 25... Nf3+ {[%clk 0:01:36.5]} 26. Kf1 {[%clk 0:01:20.8]}
26... Nh2+ {[%clk 0:01:37.1]} 27. Kg1 {[%clk 0:01:21.9]} 27... Nf3+ {[%clk
0:01:39]} 28. Kf1 {[%clk 0:01:22.9]} 28... Qh2 {[%clk 0:01:33.1]} 29. Bxf3
{[%clk 0:01:17.9]} 29... Nh4 {[%clk 0:01:30.3]} 30. Ng1 {[%clk 0:01:14.2]} 30...
Bxh3+ {[%clk 0:01:27.5]} 31. Nxh3 {[%clk 0:01:09.3]} 31... Qxh3+ {[%clk
0:01:29.1]} 32. Bg2 {[%clk 0:01:05]} 32... Nxg2 {[%clk 0:01:30.3]} 33. Rxg2
{[%clk 0:01:05.1]} 33... Rd2 {[%clk 0:01:31.5]} 0-1

[Event "*** Titled Tuesday 3|2 Blitz"]
[Site "Chess.com"]
[Date "2016.07.05"]
[Round "2"]
[White "Carolina-moon"]
[Black "sorito"]
[Result "0-1"]
[WhiteElo "2119"]
[BlackElo "2308"]
[TimeControl "180+2"]
[EndTime "11:18:58 PDT"]
[Termination "sorito won by resignation"]

1. e4 {[%clk 0:03:01.9]} 1... c5 {[%clk 0:03:00.4]} 2. Nc3 {[%clk 0:03:01.9]}
2... d6 {[%clk 0:03:00.2]} 3. f4 {[%clk 0:03:02]} 3... Nf6 {[%clk 0:02:59.5]} 4.
Nf3 {[%clk 0:03:03]} 4... g6 {[%clk 0:02:56.6]} 5. Bb5+ {[%clk 0:03:02.6]} 5...
Nc6 {[%clk 0:02:53.2]} 6. O-O {[%clk 0:03:01.4]} 6... Bg7 {[%clk 0:02:54.6]} 7.
Qe1 {[%clk 0:02:59.6]} 7... O-O {[%clk 0:02:55.5]} 8. Bxc6 {[%clk 0:03:00.7]}
8... bxc6 {[%clk 0:02:56.4]} 9. d3 {[%clk 0:03:00.8]} 9... Ne8 {[%clk
0:02:50.6]} 10. Qh4 {[%clk 0:02:58]} 10... Nc7 {[%clk 0:02:49.9]} 11. f5 {[%clk
0:02:51.9]} 11... e6 {[%clk 0:02:43.1]} 12. Bg5 {[%clk 0:02:50]} 12... f6 {[%clk
0:02:41.2]} 13. Bh6 {[%clk 0:02:48.8]} 13... Qe7 {[%clk 0:02:27.1]} 14. fxg6
{[%clk 0:02:44.3]} 14... hxg6 {[%clk 0:02:26.8]} 15. Bxg7 {[%clk 0:02:33.9]}
15... Qxg7 {[%clk 0:02:26.6]} 16. Qg3 {[%clk 0:02:29.4]} 16... e5 {[%clk
0:02:23.4]} 17. Nh4 {[%clk 0:02:26.1]} 17... Kh7 {[%clk 0:02:16]} 18. Rf3 {[%clk
0:02:19.2]} 18... Ne6 {[%clk 0:02:17.2]} 19. Raf1 {[%clk 0:02:16.9]} 19... Nf4
{[%clk 0:02:18.3]} 20. Kh1 {[%clk 0:02:09.8]} 20... Rh8 {[%clk 0:02:17.1]} 21.
Nd1 {[%clk 0:01:54.9]} 21... g5 {[%clk 0:02:17.8]} 22. Nf5 {[%clk 0:01:52.8]}
22... Bxf5 {[%clk 0:02:18.8]} 23. exf5 {[%clk 0:01:53.1]} 23... Qh6 {[%clk
0:02:19.7]} 24. R1f2 {[%clk 0:01:24.3]} 24... Kg7 {[%clk 0:02:12.8]} 25. Ne3
{[%clk 0:01:23.7]} 25... d5 {[%clk 0:02:11.1]} 26. Ng4 {[%clk 0:01:20.2]} 26...
Qh5 {[%clk 0:02:03.6]} 27. h3 {[%clk 0:01:14.3]} 27... Kf7 {[%clk 0:02:04.2]}
28. c4 {[%clk 0:01:09.2]} 28... d4 {[%clk 0:02:03.9]} 29. Rxf4 {[%clk
0:01:05.7]} 29... gxf4 {[%clk 0:02:04.5]} 30. Qf3 {[%clk 0:01:06.7]} 30... Rac8
{[%clk 0:01:54.9]} 31. Kg1 {[%clk 0:01:03.6]} 31... Qh4 {[%clk 0:01:55.9]} 32.
Re2 {[%clk 0:01:01.8]} 32... Rhg8 {[%clk 0:01:51.1]} 33. Kf1 {[%clk 0:00:22.4]}
33... Ke7 {[%clk 0:01:52]} 34. Qxf4 {[%clk 0:00:16.6]} 34... Rxg4 {[%clk
0:01:50.2]} 35. hxg4 {[%clk 0:00:17.7]} 35... Kd6 {[%clk 0:01:41.6]} 36. Qf3
{[%clk 0:00:16.1]} 36... Rg8 {[%clk 0:01:43.1]} 37. Rf2 {[%clk 0:00:13.8]} 37...
Rxg4 {[%clk 0:01:43.3]} 38. Ke2 {[%clk 0:00:13.9]} 38... Qg5 {[%clk 0:01:43.5]}
39. Kd1 {[%clk 0:00:14.3]} 39... Rg3 {[%clk 0:01:43.5]} 40. Qe2 {[%clk 0:00:15]}
40... Re3 {[%clk 0:01:44.8]} 41. Qc2 {[%clk 0:00:14.9]} 41... Qg3 {[%clk
0:01:45.9]} 42. Qd2 {[%clk 0:00:13.1]} 42... Rxd3 {[%clk 0:01:46.8]} 0-1

[Event "*** Titled Tuesday 3|2 Blitz"]
[Site "Chess.com"]
[Date "2016.07.05"]
[Round "2"]
[White "Usurpov"]
[Black "BellJackson95"]
[Result "0-1"]
[WhiteElo "2333"]
[BlackElo "2191"]
[TimeControl "180+2"]
[EndTime "11:19:23 PDT"]
[Termination "BellJackson95 won by resignation"]

1. e4 {[%clk 0:03:01.9]} 1... e5 {[%clk 0:03:00.4]} 2. Nf3 {[%clk 0:03:02.1]}
2... Nc6 {[%clk 0:03:01.7]} 3. Nc3 {[%clk 0:03:02.8]} 3... Nf6 {[%clk
0:03:02.5]} 4. d4 {[%clk 0:03:03.2]} 4... exd4 {[%clk 0:03:03.6]} 5. Nxd4 {[%clk
0:03:04.2]} 5... Bb4 {[%clk 0:03:04.2]} 6. Nxc6 {[%clk 0:03:05]} 6... bxc6
{[%clk 0:03:06.1]} 7. Bd3 {[%clk 0:03:06.3]} 7... d5 {[%clk 0:03:07.5]} 8. exd5
{[%clk 0:03:08.2]} 8... cxd5 {[%clk 0:03:09.4]} 9. O-O {[%clk 0:03:09.6]} 9...
O-O {[%clk 0:03:11]} 10. Qf3 {[%clk 0:03:10.8]} 10... c6 {[%clk 0:03:12.4]} 11.
h3 {[%clk 0:03:11.5]} 11... Bd6 {[%clk 0:03:13.7]} 12. Bf4 {[%clk 0:03:12.4]}
12... Bxf4 {[%clk 0:03:12.8]} 13. Qxf4 {[%clk 0:03:13.2]} 13... Be6 {[%clk
0:03:06.1]} 14. b3 {[%clk 0:02:53.1]} 14... Qa5 {[%clk 0:03:00.7]} 15. Qd2
{[%clk 0:02:48.6]} 15... Qc7 {[%clk 0:02:49.3]} 16. Rfe1 {[%clk 0:02:43.1]}
16... a6 {[%clk 0:02:44.8]} 17. Na4 {[%clk 0:02:35.6]} 17... c5 {[%clk 0:02:43]}
18. c3 {[%clk 0:02:34]} 18... c4 {[%clk 0:02:38.2]} 19. Bc2 {[%clk 0:02:33.6]}
19... cxb3 {[%clk 0:02:34.2]} 20. axb3 {[%clk 0:02:35.5]} 20... Rac8 {[%clk
0:02:20.4]} 21. Bd3 {[%clk 0:02:30.2]} 21... a5 {[%clk 0:02:15.5]} 22. Rec1
{[%clk 0:02:14.5]} 22... Rfd8 {[%clk 0:02:10.3]} 23. b4 {[%clk 0:02:12.2]} 23...
axb4 {[%clk 0:02:04.4]} 24. cxb4 {[%clk 0:02:14.1]} 24... Qb8 {[%clk 0:02:03.6]}
25. Nc5 {[%clk 0:02:12.4]} 25... Ne4 {[%clk 0:01:54.2]} 26. Bxe4 {[%clk
0:02:02.3]} 26... dxe4 {[%clk 0:01:53.9]} 27. Qe1 {[%clk 0:02:00]} 27... Bd5
{[%clk 0:01:52.3]} 28. Nxe4 {[%clk 0:01:57.3]} 28... Rxc1 {[%clk 0:01:45.4]} 29.
Rxc1 {[%clk 0:01:57.7]} 29... Re8 {[%clk 0:01:44.6]} 30. f3 {[%clk 0:01:51.4]}
30... f5 {[%clk 0:01:05.4]} 31. Qd2 {[%clk 0:01:46.8]} 31... Bxe4 {[%clk
0:01:01.7]} 32. fxe4 {[%clk 0:01:47.3]} 32... fxe4 {[%clk 0:01:03.6]} 33. Qd5+
{[%clk 0:01:42.4]} 33... Kh8 {[%clk 0:01:02.9]} 34. b5 {[%clk 0:01:43.5]} 34...
e3 {[%clk 0:01:01.3]} 35. Kh1 {[%clk 0:01:22.9]} 35... e2 {[%clk 0:00:58.2]} 36.
Qd2 {[%clk 0:01:22.2]} 36... Qxb5 {[%clk 0:00:42.4]} 37. Re1 {[%clk 0:01:18.4]}
37... Qe5 {[%clk 0:00:39.8]} 38. Qc2 {[%clk 0:01:16.8]} 38... Qe3 {[%clk
0:00:39]} 39. Qc6 {[%clk 0:01:16]} 39... Rf8 {[%clk 0:00:29.2]} 40. Kh2 {[%clk
0:01:17]} 40... Qf4+ {[%clk 0:00:23.7]} 41. Kh1 {[%clk 0:01:12.2]} 41... Qf1+
{[%clk 0:00:21.4]} 0-1

[Event "*** Titled Tuesday 3|2 Blitz"]
[Site "Chess.com"]
[Date "2016.07.05"]
[Round "2"]
[White "E-Shaposhnikov"]
[Black "Astaneh"]
[Result "1-0"]
[WhiteElo "2634"]
[BlackElo "2465"]
[TimeControl "180+2"]
[EndTime "11:19:26 PDT"]
[Termination "E-Shaposhnikov won by resignation"]

1. e4 {[%clk 0:02:56.3]} 1... c6 {[%clk 0:03:00.3]} 2. d4 {[%clk 0:02:56.9]}
2... d5 {[%clk 0:03:01.8]} 3. Nd2 {[%clk 0:02:58.6]} 3... dxe4 {[%clk
0:03:02.9]} 4. Nxe4 {[%clk 0:02:58.1]} 4... Nd7 {[%clk 0:03:04.6]} 5. c4 {[%clk
0:02:58.1]} 5... Ngf6 {[%clk 0:03:05.7]} 6. Nc3 {[%clk 0:02:58.5]} 6... g6
{[%clk 0:03:04.7]} 7. Nf3 {[%clk 0:02:54.3]} 7... Bg7 {[%clk 0:03:05.3]} 8. Be2
{[%clk 0:02:54.5]} 8... O-O {[%clk 0:03:06.8]} 9. O-O {[%clk 0:02:55.3]} 9... a6
{[%clk 0:03:05.2]} 10. Bf4 {[%clk 0:02:53.4]} 10... b5 {[%clk 0:03:00.7]} 11. b3
{[%clk 0:02:49.7]} 11... Nb6 {[%clk 0:02:53]} 12. Ne5 {[%clk 0:02:41.4]} 12...
Bb7 {[%clk 0:02:50.4]} 13. Bf3 {[%clk 0:02:42.5]} 13... Rc8 {[%clk 0:02:50.6]}
14. a4 {[%clk 0:02:39.7]} 14... bxc4 {[%clk 0:02:37]} 15. bxc4 {[%clk
0:02:31.9]} 15... Nfd7 {[%clk 0:02:38.5]} 16. Qb3 {[%clk 0:02:30]} 16... Nxe5
{[%clk 0:02:29.9]} 17. Bxe5 {[%clk 0:02:25.6]} 17... Bxe5 {[%clk 0:02:25.7]} 18.
dxe5 {[%clk 0:02:27.5]} 18... Rb8 {[%clk 0:02:23]} 19. Ne4 {[%clk 0:02:25.4]}
19... c5 {[%clk 0:02:14.9]} 20. e6 {[%clk 0:02:22.6]} 20... Bxe4 {[%clk
0:01:38.1]} 21. exf7+ {[%clk 0:02:22.8]} 21... Rxf7 {[%clk 0:01:27.5]} 22. Bxe4
{[%clk 0:02:23.6]} 22... Kg7 {[%clk 0:01:23.9]} 23. Rfd1 {[%clk 0:02:18.1]}
23... Qc7 {[%clk 0:01:24.2]} 24. Qc3+ {[%clk 0:02:18.2]} 24... Rf6 {[%clk
0:01:22.3]} 25. Re1 {[%clk 0:02:07.7]} 25... Rf8 {[%clk 0:01:14.8]} 26. f3
{[%clk 0:02:01.7]} 26... Rd8 {[%clk 0:01:13.5]} 27. a5 {[%clk 0:01:59.7]} 27...
Nc8 {[%clk 0:01:14.1]} 28. Bd5 {[%clk 0:01:58.8]} 28... Nd6 {[%clk 0:01:05.9]}
29. Ra2 {[%clk 0:01:51.1]} 29... Nf5 {[%clk 0:01:02]} 30. Rb2 {[%clk 0:01:51.8]}
30... Nd4 {[%clk 0:01:01.5]} 31. Rb7 {[%clk 0:01:49.3]} 31... Qf4 {[%clk
0:00:35.8]} 32. Rexe7+ {[%clk 0:01:49.3]} 32... Kf8 {[%clk 0:00:35.9]} 33. Qe1
{[%clk 0:01:28.3]} 33... Nc2 {[%clk 0:00:28.2]} 34. Rg7 {[%clk 0:01:15.1]} 34...
Re6 {[%clk 0:00:12.2]} 35. Qxe6 {[%clk 0:01:12.2]} 35... Qd4+ {[%clk 0:00:11.2]}
36. Kf1 {[%clk 0:01:13.1]} 36... Qd3+ {[%clk 0:00:10.9]} 37. Kf2 {[%clk
0:01:08.6]} 37... Qd2+ {[%clk 0:00:11.3]} 38. Kg3 {[%clk 0:01:09.9]} 38... Qg5+
{[%clk 0:00:12.8]} 39. Qg4 {[%clk 0:01:10.9]} 39... Qe5+ {[%clk 0:00:14.4]} 40.
Qf4+ {[%clk 0:01:12]} 1-0

[Event "*** Titled Tuesday 3|2 Blitz"]
[Site "Chess.com"]
[Date "2016.07.05"]
[Round "2"]
[White "theprosecution1"]
[Black "AndreyOstrovskiy"]
[Result "1-0"]
[WhiteElo "2526"]
[BlackElo "2486"]
[TimeControl "180+2"]
[EndTime "11:19:35 PDT"]
[Termination "theprosecution1 won by checkmate"]

1. d4 {[%clk 0:02:56.5]} 1... Nf6 {[%clk 0:03:00.6]} 2. c4 {[%clk 0:02:56.2]}
2... e6 {[%clk 0:03:01.9]} 3. Nf3 {[%clk 0:02:56.6]} 3... b6 {[%clk 0:03:02.8]}
4. g3 {[%clk 0:02:57.6]} 4... Ba6 {[%clk 0:03:04.1]} 5. Qc2 {[%clk 0:02:58.8]}
5... Bb4+ {[%clk 0:03:04.2]} 6. Bd2 {[%clk 0:02:53.2]} 6... Be7 {[%clk
0:03:04.7]} 7. e4 {[%clk 0:02:53.5]} 7... d5 {[%clk 0:03:06]} 8. cxd5 {[%clk
0:02:55.4]} 8... Bxf1 {[%clk 0:03:06.6]} 9. Kxf1 {[%clk 0:02:57.3]} 9... exd5
{[%clk 0:03:07.8]} 10. e5 {[%clk 0:02:58.9]} 10... Ne4 {[%clk 0:03:08.6]} 11.
Nc3 {[%clk 0:03:00.4]} 11... Nxd2+ {[%clk 0:03:05.4]} 12. Nxd2 {[%clk
0:02:55.8]} 12... O-O {[%clk 0:03:05.7]} 13. Kg2 {[%clk 0:02:55.3]} 13... c5
{[%clk 0:03:06.3]} 14. Nf3 {[%clk 0:02:51.4]} 14... Nc6 {[%clk 0:03:06.1]} 15.
Rad1 {[%clk 0:02:32.9]} 15... Nb4 {[%clk 0:02:58]} 16. Qb1 {[%clk 0:02:33.1]}
16... c4 {[%clk 0:02:58.7]} 17. a3 {[%clk 0:02:22.7]} 17... Nd3 {[%clk
0:02:57.7]} 18. Ne1 {[%clk 0:02:23.8]} 18... Nxe1+ {[%clk 0:02:55]} 19. Rhxe1
{[%clk 0:02:25.2]} 19... Qd7 {[%clk 0:02:52.7]} 20. Qc1 {[%clk 0:02:19.9]} 20...
Rfe8 {[%clk 0:02:33.3]} 21. Qf4 {[%clk 0:02:20.8]} 21... Bf8 {[%clk 0:02:33.3]}
22. h4 {[%clk 0:02:19.1]} 22... b5 {[%clk 0:02:32.5]} 23. Qf3 {[%clk 0:02:19.6]}
23... Rad8 {[%clk 0:02:32.8]} 24. h5 {[%clk 0:02:10.9]} 24... a5 {[%clk
0:02:32.5]} 25. h6 {[%clk 0:02:01.5]} 25... g6 {[%clk 0:02:31.7]} 26. Rh1 {[%clk
0:02:00.7]} 26... b4 {[%clk 0:02:31.4]} 27. axb4 {[%clk 0:02:01.5]} 27... axb4
{[%clk 0:02:33]} 28. Ne2 {[%clk 0:02:03.1]} 28... f5 {[%clk 0:02:24.5]} 29. Nf4
{[%clk 0:01:58.7]} 29... Qf7 {[%clk 0:02:17.1]} 30. Ra1 {[%clk 0:01:57]} 30...
g5 {[%clk 0:01:59.9]} 31. Nh5 {[%clk 0:01:57.3]} 31... Re6 {[%clk 0:01:58.4]}
32. Nf6+ {[%clk 0:01:58.6]} 32... Rxf6 {[%clk 0:01:59.6]} 33. exf6 {[%clk
0:02:00.5]} 33... Qxf6 {[%clk 0:01:59.6]} 34. Ra7 {[%clk 0:01:29.6]} 34... b3
{[%clk 0:01:40.4]} 35. Re1 {[%clk 0:01:17.4]} 35... Bxh6 {[%clk 0:01:33.9]} 36.
Ree7 {[%clk 0:01:15.6]} 36... g4 {[%clk 0:01:31.5]} 37. Qe2 {[%clk 0:01:16.8]}
37... Bf8 {[%clk 0:01:20.2]} 38. Rxh7 {[%clk 0:01:13.4]} 38... c3 {[%clk
0:01:19.2]} 39. bxc3 {[%clk 0:01:11.5]} 39... Rc8 {[%clk 0:01:10.5]} 40. Qb2
{[%clk 0:00:44.2]} 40... f4 {[%clk 0:01:04.9]} 41. Qxb3 {[%clk 0:00:40.1]} 41...
Qe6 {[%clk 0:01:00.8]} 42. Qb1 {[%clk 0:00:37.7]} 42... Rxc3 {[%clk 0:00:55.7]}
43. Rh8+ {[%clk 0:00:38.2]} 43... Kxh8 {[%clk 0:00:51.9]} 44. Qh7# {[%clk
0:00:40.1]} 1-0

[Event "*** Titled Tuesday 3|2 Blitz"]
[Site "Chess.com"]
[Date "2016.07.05"]
[Round "2"]
[White "Fandorine"]
[Black "Keaton87"]
[Result "0-1"]
[WhiteElo "2621"]
[BlackElo "2492"]
[TimeControl "180+2"]
[EndTime "11:19:45 PDT"]
[Termination "Keaton87 won by resignation"]

1. e4 {[%clk 0:03:01.9]} 1... c5 {[%clk 0:03:00.9]} 2. Nf3 {[%clk 0:03:02.8]}
2... d6 {[%clk 0:03:02.3]} 3. d4 {[%clk 0:03:04]} 3... Nf6 {[%clk 0:03:04]} 4.
Nc3 {[%clk 0:03:04.7]} 4... cxd4 {[%clk 0:03:05.5]} 5. Nxd4 {[%clk 0:03:06.4]}
5... g6 {[%clk 0:03:07.2]} 6. Be3 {[%clk 0:03:05.7]} 6... Bg7 {[%clk 0:03:08.9]}
7. f3 {[%clk 0:03:07.1]} 7... O-O {[%clk 0:03:10.6]} 8. Qd2 {[%clk 0:03:08.7]}
8... Nc6 {[%clk 0:03:12.1]} 9. g4 {[%clk 0:03:10.3]} 9... Nxd4 {[%clk
0:03:12.5]} 10. Bxd4 {[%clk 0:03:06]} 10... Be6 {[%clk 0:03:14.1]} 11. O-O-O
{[%clk 0:03:05.2]} 11... Qa5 {[%clk 0:03:15]} 12. Kb1 {[%clk 0:03:06.4]} 12...
Rfc8 {[%clk 0:03:16.2]} 13. Nd5 {[%clk 0:03:04.5]} 13... Qxd2 {[%clk 0:03:14.4]}
14. Nxf6+ {[%clk 0:03:04.8]} 14... Bxf6 {[%clk 0:03:13.8]} 15. Rxd2 {[%clk
0:03:06.7]} 15... Bxd4 {[%clk 0:03:13.2]} 16. Rxd4 {[%clk 0:03:08.6]} 16... h6
{[%clk 0:03:11.3]} 17. h4 {[%clk 0:03:08.5]} 17... g5 {[%clk 0:03:06.3]} 18. Be2
{[%clk 0:03:09.2]} 18... Kg7 {[%clk 0:03:06.6]} 19. c3 {[%clk 0:03:07.8]} 19...
Kf6 {[%clk 0:03:03.6]} 20. Kc2 {[%clk 0:03:09]} 20... Ke5 {[%clk 0:03:03.8]} 21.
a4 {[%clk 0:03:07.4]} 21... Kf4 {[%clk 0:02:54.7]} 22. Kd2 {[%clk 0:03:08.6]}
22... Rc5 {[%clk 0:02:51.6]} 23. hxg5 {[%clk 0:02:50.4]} 23... hxg5 {[%clk
0:02:51.8]} 24. Rh5 {[%clk 0:02:47.3]} 24... Re5 {[%clk 0:02:49.6]} 25. Ke1
{[%clk 0:02:41.6]} 25... Rc8 {[%clk 0:02:34.4]} 26. Kf2 {[%clk 0:02:41.6]} 26...
b6 {[%clk 0:02:16.2]} 27. Rh6 {[%clk 0:02:40.8]} 27... Rg8 {[%clk 0:01:57.7]}
28. Bc4 {[%clk 0:02:17.9]} 28... Bxc4 {[%clk 0:01:47.3]} 29. Rxc4 {[%clk
0:02:19.8]} 29... Rc5 {[%clk 0:01:48.2]} 30. Rd4 {[%clk 0:02:18.3]} 30... Ke5
{[%clk 0:01:17.9]} 31. Ke3 {[%clk 0:02:18.9]} 31... f6 {[%clk 0:01:16.6]} 32.
Rh7 {[%clk 0:02:13.2]} 32... Ke6 {[%clk 0:01:15.2]} 33. Kd3 {[%clk 0:02:14.4]}
33... Rgc8 {[%clk 0:01:14.8]} 34. c4 {[%clk 0:02:10.8]} 34... a5 {[%clk
0:01:04]} 35. b3 {[%clk 0:02:11.7]} 35... Re5 {[%clk 0:01:04.8]} 36. Rd5 {[%clk
0:02:10.5]} 36... Kd7 {[%clk 0:00:47.6]} 37. Ke3 {[%clk 0:02:07.6]} 37... Ke6
{[%clk 0:00:46.5]} 38. Kd4 {[%clk 0:01:45.3]} 38... Kd7 {[%clk 0:00:46.8]} 39.
Ke3 {[%clk 0:01:40]} 39... Ke6 {[%clk 0:00:47.8]} 40. Rh1 {[%clk 0:01:41.7]}
40... Kd7 {[%clk 0:00:47.4]} 41. Rh5 {[%clk 0:01:40.8]} 41... Ke6 {[%clk
0:00:46.3]} 42. f4 {[%clk 0:01:37.8]} 42... gxf4+ {[%clk 0:00:46.2]} 43. Kxf4
{[%clk 0:01:39.7]} 43... Rg8 {[%clk 0:00:44.3]} 44. Rf5 {[%clk 0:01:36.9]} 44...
Rh8 {[%clk 0:00:42.4]} 45. g5 {[%clk 0:01:14.3]} 45... fxg5+ {[%clk 0:00:39.5]}
46. Kxg5 {[%clk 0:01:15.5]} 46... Rxe4 {[%clk 0:00:36.9]} 47. Rf3 {[%clk
0:01:07.3]} 47... Rg8+ {[%clk 0:00:37.8]} 48. Kh6 {[%clk 0:01:08.6]} 48... Rh4+
{[%clk 0:00:35.9]} 49. Rh5 {[%clk 0:01:09.9]} 49... Rh8+ {[%clk 0:00:37.2]} 50.
Kg6 {[%clk 0:01:11.8]} 50... R8xh5 {[%clk 0:00:37.5]} 51. Re3+ {[%clk
0:01:13.7]} 51... Re5 {[%clk 0:00:38.5]} 0-1

[Event "*** Titled Tuesday 3|2 Blitz"]
[Site "Chess.com"]
[Date "2016.07.05"]
[Round "2"]
[White "oggy1984"]
[Black "WanderingPuppet"]
[Result "0-1"]
[WhiteElo "2300"]
[BlackElo "2295"]
[TimeControl "180+2"]
[EndTime "11:19:48 PDT"]
[Termination "WanderingPuppet won by resignation"]

1. e4 {[%clk 0:03:01.9]} 1... c5 {[%clk 0:03:00.4]} 2. Nf3 {[%clk 0:03:01]} 2...
d6 {[%clk 0:03:01.8]} 3. d4 {[%clk 0:02:59.8]} 3... cxd4 {[%clk 0:03:03.7]} 4.
Qxd4 {[%clk 0:03:01.2]} 4... a6 {[%clk 0:03:03.8]} 5. c4 {[%clk 0:03:00.8]} 5...
Nc6 {[%clk 0:03:05.3]} 6. Qe3 {[%clk 0:03:01.3]} 6... Nf6 {[%clk 0:03:06.6]} 7.
h3 {[%clk 0:03:00.8]} 7... e6 {[%clk 0:03:07.5]} 8. Nc3 {[%clk 0:02:59.5]} 8...
Be7 {[%clk 0:03:08.9]} 9. Be2 {[%clk 0:02:55.9]} 9... O-O {[%clk 0:03:10.5]} 10.
O-O {[%clk 0:02:55.9]} 10... Qc7 {[%clk 0:03:11.9]} 11. b3 {[%clk 0:02:51]}
11... b6 {[%clk 0:03:12.6]} 12. Rd1 {[%clk 0:02:47.4]} 12... Nd7 {[%clk
0:03:12.2]} 13. Bb2 {[%clk 0:02:46.4]} 13... Rd8 {[%clk 0:03:13.4]} 14. Rac1
{[%clk 0:02:46.5]} 14... Qb8 {[%clk 0:03:12.3]} 15. Nd4 {[%clk 0:02:21.3]} 15...
Bb7 {[%clk 0:03:12.4]} 16. f4 {[%clk 0:02:16.9]} 16... Bf6 {[%clk 0:03:03.5]}
17. Nxc6 {[%clk 0:02:12.1]} 17... Bxc6 {[%clk 0:03:05.4]} 18. Kh1 {[%clk
0:02:10.3]} 18... b5 {[%clk 0:02:38.8]} 19. cxb5 {[%clk 0:01:54.7]} 19... axb5
{[%clk 0:02:25.8]} 20. Nd5 {[%clk 0:01:21.9]} 20... exd5 {[%clk 0:02:21.3]} 21.
Bxf6 {[%clk 0:01:20.3]} 21... Nxf6 {[%clk 0:02:23.2]} 22. Rxc6 {[%clk
0:01:18.2]} 22... dxe4 {[%clk 0:02:19.1]} 23. Rb6 {[%clk 0:01:00.3]} 23... Qc7
{[%clk 0:02:05.1]} 24. Bxb5 {[%clk 0:00:51.5]} 24... Rxa2 {[%clk 0:01:59.8]} 25.
Rc1 {[%clk 0:00:43]} 25... Qe7 {[%clk 0:01:24]} 26. Rbc6 {[%clk 0:00:16.9]}
26... h5 {[%clk 0:00:58.2]} 27. Rc7 {[%clk 0:00:14.9]} 27... Qe6 {[%clk
0:00:55.1]} 28. b4 {[%clk 0:00:12.9]} 28... Nd5 {[%clk 0:00:49.5]} 29. Bc4
{[%clk 0:00:08.3]} 29... Nxe3 {[%clk 0:00:46.7]} 30. Bxe6 {[%clk 0:00:09.7]}
30... fxe6 {[%clk 0:00:48.2]} 31. Re7 {[%clk 0:00:10.7]} 31... Rxg2 {[%clk
0:00:43.1]} 32. Rxe6 {[%clk 0:00:08.7]} 32... d5 {[%clk 0:00:38.6]} 33. Rc7
{[%clk 0:00:09.4]} 33... Ra8 {[%clk 0:00:37.5]} 34. Rc1 {[%clk 0:00:07.5]} 34...
Raa2 {[%clk 0:00:36.5]} 0-1